bitfinex/quotes_BTCUSD_20240906
["timestamp","ask_amount","ask_price","bid_price","bid_amount"]
[1725613023643,0.000816,55881.0,55880.0,2.80576365]
[1725613023867,0.000816,55881.0,55880.0,2.81976365]
[1725613024079,0.000816,55881.0,55880.0,2.80576365]
[1725613024544,0.000816,55881.0,55880.0,2.81976365]
[1725613027753,0.000816,55881.0,55880.0,2.82976365]
[1725613027994,0.000816,55881.0,55880.0,3.18767265]
[1725613029120,0.000816,55881.0,55880.0,3.54558165]
[1725613029569,0.000816,55881.0,55880.0,3.66558165]
[1725613030222,0.000816,55881.0,55880.0,3.66758165]
[1725613030923,0.000816,55881.0,55880.0,3.30967265]
[1725613032076,0.000816,55886.0,55885.0,1.620446]
[1725613032322,0.000816,55886.0,55885.0,2.88894849]
[1725613033479,0.000816,55886.0,55885.0,2.90294849]
[1725613034346,0.000816,55886.0,55885.0,2.91694849]
[1725613035228,0.000816,55886.0,55885.0,4.16314849]
[1725613036171,0.00082,55909.0,55908.0,0.178865]
[1725613036388,0.01759156,55909.0,55908.0,0.8452622]
[1725613036591,0.01759156,55909.0,55908.0,0.856366]
[1725613036840,0.01759156,55909.0,55908.0,0.498636]
[1725613039004,0.01759156,55909.0,55908.0,0.510636]
[1725613040589,0.00082,55909.0,55908.0,0.10812342]
[1725613040820,0.01759061,55909.0,55908.0,0.09612342]
[1725613041044,0.01759061,55909.0,55908.0,0.10912342]
[1725613041287,0.01759061,55909.0,55908.0,0.28798842]
[1725613041507,0.01759061,55909.0,55908.0,0.27698842]
[1725613043018,0.01759061,55909.0,55908.0,0.28898842]
[1725613043466,0.01759061,55909.0,55908.0,0.64671842]
[1725613043961,0.01759061,55909.0,55908.0,0.28898842]
[1725613045072,0.01759061,55909.0,55908.0,0.64671842]
[1725613045289,0.01759108,55909.0,55908.0,0.11012342]
[1725613045504,0.19645308,55909.0,55908.0,0.11012342]
[1725613045713,0.19645308,55909.0,55908.0,1.28898842]
[1725613045714,0.01759108,55909.0,55908.0,1.28898842]
[1725613045920,0.01759108,55909.0,55908.0,1.11012342]
[1725613046341,0.01759108,55909.0,55908.0,1.08512342]
[1725613046782,0.01759108,55909.0,55908.0,1.11212342]
[1725613047231,0.01759108,55909.0,55908.0,1.09912342]
[1725613047460,0.0175904,55909.0,55908.0,1.11212342]
[1725613048837,0.1964524,55909.0,55908.0,1.11212342]
[1725613049268,0.5541764,55909.0,55908.0,1.11212342]
[1725613049859,0.5541764,55909.0,55908.0,1.09912342]
[1725613050074,0.5541764,55909.0,55908.0,1.08512342]
[1725613050286,0.5541764,55909.0,55908.0,1.10612342]
[1725613050738,0.5541764,55909.0,55908.0,1.09612342]
[1725613050963,0.55417519,55909.0,55908.0,1.09612342]
[1725613051193,0.55417519,55909.0,55908.0,1.10612342]
[1725613051422,0.19645119,55909.0,55908.0,1.10612342]
[1725613052282,0.22328184,55909.0,55908.0,1.10612342]
[1725613052972,1.10694505,55909.0,55908.0,1.10612342]
[1725613053212,1.46466905,55909.0,55908.0,1.10612342]
[1725613053487,1.46466464,55909.0,55908.0,1.0321038]
[1725613053896,1.46466464,55909.0,55908.0,1.0221038]
[1725613054116,1.82238864,55909.0,55908.0,1.0171038]
[1725613054538,1.82238546,55909.0,55908.0,1.0171038]
[1725613054764,1.83579875,55909.0,55908.0,1.0171038]
[1725613054980,1.82238448,55909.0,55908.0,1.0171038]
[1725613055811,1.82238448,55909.0,55908.0,1.0111038]
[1725613056016,1.82338448,55909.0,55908.0,1.0111038]
[1725613056746,1.92238448,55909.0,55908.0,1.0111038]
[1725613056949,1.92338448,55909.0,55908.0,1.0111038]
[1725613057165,1.92438448,55909.0,55908.0,1.0111038]
[1725613057372,1.87979129,55909.0,55908.0,1.0111038]
[1725613057587,1.92238475,55909.0,55908.0,1.0111038]
[1725613057794,1.92738475,55909.0,55908.0,1.0111038]
[1725613058230,1.91197146,55909.0,55908.0,1.0111038]
[1725613058448,1.92638487,55909.0,55908.0,1.0111038]
[1725613059595,1.92238487,55909.0,55908.0,1.0111038]
[1725613060260,1.92438487,55909.0,55908.0,1.0111038]
[1725613061011,1.92238487,55909.0,55908.0,1.0111038]
[1725613061232,1.92338487,55909.0,55908.0,1.0111038]
[1725613062779,1.92256487,55909.0,55908.0,1.0111038]
[1725613063552,1.92256487,55909.0,55908.0,0.0111038]
[1725613064013,0.178896,55899.0,55895.0,0.289205]
[1725613064270,0.178897,55898.0,55895.0,0.289205]
[1725613064497,0.22248663,55898.0,55896.0,0.01093858]
[1725613064735,0.04358963,55897.0,55896.0,0.01093858]
[1725613065164,0.04358963,55897.0,55896.0,0.08560993]
[1725613065607,0.05700182,55897.0,55896.0,0.08560993]
[1725613066009,0.05700182,55897.0,55896.0,0.26451293]
[1725613066339,0.03017743,55897.0,55896.0,0.26451293]
[1725613066565,0.01676524,55897.0,55896.0,0.08560993]
[1725613066999,0.0301773,55897.0,55896.0,0.09960993]
[1725613067217,0.0301773,55897.0,55896.0,0.11260993]
[1725613067438,0.0301773,55897.0,55896.0,0.64931993]
[1725613067693,0.01676524,55897.0,55896.0,0.64931993]
[1725613067901,0.01676524,55897.0,55896.0,0.11260993]
[1725613068602,0.03017738,55897.0,55896.0,0.11260993]
[1725613069047,0.03017891,55897.0,55896.0,0.29151293]
[1725613069276,0.01676524,55897.0,55896.0,0.29151293]
[1725613069497,0.05700444,55897.0,55896.0,0.11260993]
[1725613069718,0.03017867,55897.0,55896.0,0.11260993]
[1725613070391,0.03017948,55897.0,55896.0,0.11260993]
[1725613072007,0.03017948,55897.0,55896.0,0.29151293]
[1725613072689,0.03017948,55897.0,55896.0,0.64931993]
[1725613072916,0.05700447,55897.0,55896.0,0.29151293]
[1725613073621,0.178891,55900.0,55896.0,0.29151293]
[1725613073840,0.02682491,55899.0,55896.0,0.21684158]
[1725613074309,0.01676557,55898.0,55896.0,0.21684158]
[1725613074530,0.05700293,55897.0,55896.0,0.21684158]
[1725613074759,0.05700293,55897.0,55896.0,1.42409704]
[1725613074984,0.01676557,55897.0,55896.0,1.79090404]
[1725613075447,0.95150347,55897.0,55896.0,0.14363858]
[1725613075914,0.95150347,55897.0,55896.0,1.1327]
[1725613075915,0.59370347,55897.0,55896.0,1.1327]
[1725613076102,0.59370347,55897.0,55896.0,1.12963704]
[1725613076544,0.59370347,55897.0,55896.0,1.12063704]
[1725613076760,0.58028594,55897.0,55896.0,1.14463704]
[1725613076974,0.97632188,55897.0,55896.0,1.14463704]
[1725613077201,0.94949976,55897.0,55896.0,1.12063704]
[1725613077409,0.94949976,55897.0,55896.0,1.12763704]
[1725613077580,0.94949976,55897.0,55896.0,1.13363704]
[1725613078647,0.93957576,55897.0,55896.0,1.13363704]
[1725613079542,1.29737576,55897.0,55896.0,1.02393704]
[1725613079782,1.25378706,55897.0,55896.0,1.02393704]
[1725613079991,1.240376,55897.0,55896.0,1.02393704]
[1725613080196,1.29737247,55897.0,55896.0,1.02393704]
[1725613081714,1.29737247,55897.0,55896.0,1.02556704]
[1725613081946,1.2705506,55897.0,55896.0,1.02556704]
[1725613082160,1.28060827,55897.0,55896.0,1.02556704]
[1725613082436,1.29737161,55897.0,55896.0,1.02556704]
[1725613085617,1.29735531,55897.0,55896.0,1.02556704]
[1725613086273,1.30927931,55897.0,55896.0,1.02556704]
[1725613089524,0.05697931,55897.0,55896.0,1.34268589]
[1725613089739,0.23587931,55897.0,55896.0,1.34268589]
[1725613089914,0.05697931,55897.0,55896.0,1.34268589]
[1725613090927,0.05697565,55897.0,55896.0,1.34268589]
[1725613091470,0.23587565,55897.0,55896.0,1.34268589]
[1725613091673,0.21911999,55897.0,55896.0,1.34268589]
[1725613091899,0.23587562,55897.0,55896.0,1.34268589]
[1725613092121,0.59367562,55897.0,55896.0,1.20788589]
[1725613092335,1.30927562,55897.0,55896.0,1.02556704]
[1725613092745,1.29586469,55897.0,55896.0,1.02556704]
[1725613092972,1.29586469,55897.0,55896.0,1.01463]
[1725613093198,1.29667969,55897.0,55896.0,1.00863]
[1725613093393,1.29667969,55897.0,55896.0,1.01956704]
[1725613093623,1.29667969,55897.0,55896.0,1.01656704]
[1725613094096,1.29667969,55897.0,55896.0,1.01756704]
[1725613094585,1.29667969,55897.0,55896.0,1.02156704]
[1725613096075,1.29667969,55897.0,55896.0,2.02156704]
[1725613098379,1.29667741,55897.0,55896.0,2.02156704]
[1725613100295,1.75447741,55897.0,55896.0,2.02156704]
[1725613100511,1.76377741,55897.0,55896.0,2.02156704]
[1725613100730,1.76377741,55897.0,55896.0,2.01063]
[1725613100731,1.98269648,55897.0,55896.0,2.01063]
[1725613100956,1.98269648,55897.0,55896.0,2.00663]
[1725613101152,1.98269648,55897.0,55896.0,2.01756704]
[1725613101642,1.98269178,55897.0,55896.0,2.01756704]
[1725613101873,1.90217271,55897.0,55896.0,2.01756704]
[1725613102099,2.39417117,55897.0,55896.0,2.01756704]
[1725613102310,2.39417117,55897.0,55896.0,2.01256704]
[1725613102311,2.33705993,55897.0,55896.0,2.01256704]
[1725613102535,2.33705993,55897.0,55896.0,2.00163]
[1725613102753,2.33705993,55897.0,55896.0,2.01256704]
[1725613103197,2.34005993,55897.0,55896.0,2.01356704]
[1725613103865,2.33905993,55897.0,55896.0,2.01256704]
[1725613104174,2.34205993,55897.0,55896.0,2.01356704]
[1725613104381,2.29451404,55897.0,55896.0,2.01356704]
[1725613104835,2.29751404,55897.0,55896.0,2.01456704]
[1725613105060,2.29451404,55897.0,55896.0,1.01356704]
[1725613105283,2.29451404,55897.0,55896.0,1.01456704]
[1725613105284,2.40483647,55897.0,55896.0,1.01456704]
[1725613105497,2.29551404,55897.0,55896.0,1.01456704]
[1725613105967,2.37599282,55897.0,55896.0,1.01456704]
[1725613106197,2.37599282,55897.0,55896.0,1.00363]
[1725613106681,2.37599282,55897.0,55896.0,1.01456704]
[1725613106872,2.29551404,55897.0,55896.0,1.01456704]
[1725613107074,2.37599282,55897.0,55896.0,1.01456704]
[1725613107309,2.74379282,55897.0,55896.0,1.01456704]
[1725613107511,2.8666154,55897.0,55896.0,0.83566204]
[1725613107752,2.73243866,55897.0,55896.0,0.753163]
[1725613107872,2.73243866,55897.0,55896.0,0.76410004]
[1725613108072,2.8096789,55897.0,55896.0,0.76410004]
[1725613108543,2.68331404,55897.0,55896.0,0.76410004]
[1725613108746,2.68031404,55897.0,55896.0,0.76310004]
[1725613109031,2.68031404,55897.0,55896.0,0.76410004]
[1725613109032,2.76059234,55897.0,55896.0,0.76410004]
[1725613109428,2.75759234,55897.0,55896.0,0.76310004]
[1725613109631,2.68031404,55897.0,55896.0,0.76310004]
[1725613109843,2.69131404,55897.0,55896.0,0.76410004]
[1725613110243,2.76862605,55897.0,55896.0,0.76410004]
[1725613110444,2.75762605,55897.0,55896.0,0.76310004]
[1725613110656,2.69131404,55897.0,55896.0,0.76410004]
[1725613110802,2.69331404,55897.0,55896.0,0.76410004]
[1725613111991,2.74243866,55897.0,55896.0,0.76410004]
[1725613112846,2.89939413,55897.0,55896.0,0.76410004]
[1725613113059,2.76543866,55897.0,55896.0,0.76410004]
[1725613113273,2.90521404,55897.0,55896.0,0.76410004]
[1725613113718,3.039151,55897.0,55896.0,0.76410004]
[1725613113928,3.03915178,55897.0,55896.0,0.76410004]
[1725613114217,2.45745178,55897.0,55896.0,0.76410004]
[1725613114463,2.31350717,55897.0,55896.0,0.76410004]
[1725613116206,2.36060662,55897.0,55896.0,0.76410004]
[1725613117541,2.48399443,55897.0,55896.0,0.76410004]
[1725613117777,2.44408985,55897.0,55896.0,0.76410004]
[1725613117994,2.42376591,55897.0,55896.0,0.76410004]
[1725613118432,2.41076591,55897.0,55896.0,0.76410004]
[1725613119365,2.43376591,55897.0,55896.0,0.76410004]
[1725613120891,2.43380062,55897.0,55896.0,0.76410004]
[1725613121098,2.39021481,55897.0,55896.0,0.76410004]
[1725613121308,2.43379924,55897.0,55896.0,0.76410004]
[1725613121960,2.55886913,55897.0,55896.0,0.76410004]
[1725613122823,2.91666913,55897.0,55896.0,0.76410004]
[1725613123033,2.91666913,55897.0,55886.0,0.001632]
[1725613123034,1.610388,55887.0,55886.0,0.001632]
[1725613123276,1.87904232,55887.0,55886.0,0.001632]
[1725613123702,2.23690632,55887.0,55886.0,0.01217097]
[1725613123976,2.29047827,55887.0,55886.0,0.001632]
[1725613124213,2.23690632,55887.0,55886.0,0.001632]
[1725613124639,2.2934707,55887.0,55886.0,0.001632]
[1725613124879,2.23690632,55887.0,55886.0,0.001632]
[1725613125085,2.31726425,55887.0,55886.0,0.001632]
[1725613125314,2.29744306,55887.0,55886.0,0.002632]
[1725613125547,2.23890988,55887.0,55886.0,0.001632]
[1725613125956,2.3573816,55887.0,55886.0,0.002632]
[1725613126163,2.3463816,55887.0,55886.0,0.001632]
[1725613126373,2.3563816,55887.0,55886.0,0.001632]
[1725613128045,2.3663816,55887.0,55886.0,0.001632]
[1725613128268,2.3663816,55887.0,55886.0,0.110632]
[1725613128464,2.3663816,55887.0,55886.0,0.001632]
[1725613128680,1.610446,55885.0,55884.0,0.09115981]
[1725613128895,1.75403399,55885.0,55884.0,0.09115981]
[1725613129586,1.7540355,55885.0,55884.0,0.09115981]
[1725613130030,1.7600355,55885.0,55884.0,0.09115981]
[1725613130464,1.7600355,55885.0,55884.0,0.23435981]
[1725613130933,1.358569,55885.0,55884.0,0.23435981]
[1725613131134,1.365569,55885.0,55884.0,0.23435981]
[1725613131571,1.39470756,55885.0,55884.0,0.23435981]
[1725613132454,0.67895356,55885.0,55884.0,0.23435981]
[1725613132670,0.32107656,55885.0,55884.0,0.23435981]
[1725613132879,0.32107656,55885.0,55884.0,0.31148637]
[1725613133094,0.013,55885.0,55884.0,0.85885586]
[1725613133341,0.013,55885.0,55884.0,0.50097186]
[1725613133542,0.013,55885.0,55884.0,0.85885586]
[1725613133749,0.357822,55894.0,55885.0,0.2509]
[1725613133963,0.178907,55895.0,55892.0,0.2509]
[1725613134190,0.178911,55894.0,55893.0,0.01052316]
[1725613134391,0.178911,55894.0,55893.0,0.07206404]
[1725613134612,0.178911,55894.0,55893.0,0.26142316]
[1725613135027,0.536731,55894.0,55893.0,0.26142316]
[1725613135229,0.178911,55894.0,55893.0,0.26142316]
[1725613135434,0.178911,55894.0,55893.0,0.33406232]
[1725613135642,0.278911,55894.0,55893.0,0.33406232]
[1725613135970,0.282911,55894.0,55893.0,0.33406232]
[1725613136177,0.286911,55894.0,55893.0,0.33406232]
[1725613137157,0.108,55894.0,55893.0,0.33406232]
[1725613137758,0.28691,55894.0,55893.0,0.33406232]
[1725613139757,0.108,55894.0,55893.0,0.33406232]
[1725613140148,0.28691,55894.0,55893.0,0.33406232]
[1725613141843,0.108,55894.0,55893.0,0.33406232]
[1725613142178,0.28691,55894.0,55893.0,0.33406232]
[1725613142614,0.28691,55894.0,55893.0,0.33332232]
[1725613142822,0.008,55894.0,55893.0,0.51223532]
[1725613143036,0.008,55894.0,55893.0,0.87006132]
[1725613147872,0.008,55894.0,55893.0,1.22788732]
[1725613149424,0.008,55894.0,55893.0,1.46242893]
[1725613151270,0.3563329,55903.0,55895.0,0.357813]
[1725613151450,0.178889,55901.0,55898.0,0.1127]
[1725613151652,0.278885,55902.0,55898.0,0.1127]
[1725613151992,0.1,55902.0,55900.0,0.1468]
[1725613152189,0.1,55902.0,55901.0,0.1119]
[1725613152398,0.1,55902.0,55901.0,0.19728945]
[1725613152812,0.013,55902.0,55901.0,0.85658706]
[1725613153017,0.013,55902.0,55901.0,0.46353106]
[1725613153246,0.013,55902.0,55901.0,0.40787645]
[1725613153482,0.013,55902.0,55901.0,0.51897645]
[1725613154277,0.357738,55907.0,55903.0,0.1155]
[1725613154497,0.178875,55905.0,55903.0,0.1035]
[1725613154828,0.178875,55905.0,55904.0,0.01137319]
[1725613155014,0.178875,55905.0,55904.0,0.08794331]
[1725613156403,0.179875,55905.0,55904.0,0.09394331]
[1725613156607,0.179875,55905.0,55904.0,0.09994331]
[1725613157007,0.001,55905.0,55904.0,0.09994331]
[1725613157755,0.001,55905.0,55904.0,0.22074331]
[1725613157963,0.001,55905.0,55904.0,0.35994331]
[1725613158196,0.001,55905.0,55904.0,0.53882131]
[1725613158595,0.001,55905.0,55904.0,1.25433331]
[1725613159079,0.001,55905.0,55904.0,1.78760027]
[1725613162579,0.179874,55905.0,55904.0,0.35994331]
[1725613162807,0.537623,55905.0,55904.0,0.35994331]
[1725613162960,0.895372,55905.0,55904.0,0.22074331]
[1725613163587,0.895372,55905.0,55904.0,0.02337319]
[1725613163979,0.895372,55905.0,55904.0,0.012]
[1725613164625,0.896188,55905.0,55904.0,0.012]
[1725613164794,0.896188,55905.0,55904.0,0.02337319]
[1725613167331,0.896188,55905.0,55904.0,0.02050319]
[1725613168554,0.64696868,55905.0,55904.0,0.02050319]
[1725613168793,0.82584268,55905.0,55904.0,0.02050319]
[1725613169045,0.46809368,55905.0,55904.0,0.28590319]
[1725613169269,0.000816,55905.0,55904.0,0.46478119]
[1725613169504,0.000816,55905.0,55904.0,0.5405199]
[1725613169748,0.000816,55905.0,55904.0,0.8982759]
[1725613169988,0.000816,55905.0,55904.0,0.3616419]
[1725613172524,0.000816,55905.0,55904.0,0.5405199]
[1725613175178,0.17969,55905.0,55904.0,0.3616419]
[1725613175383,0.17969,55905.0,55904.0,0.02050319]
[1725613175596,0.895188,55905.0,55904.0,0.02050319]
[1725613176820,0.895188,55905.0,55904.0,0.00913]
[1725613177383,0.895188,55905.0,55904.0,0.010762]
[1725613178855,1.252937,55905.0,55904.0,0.010762]
[1725613179507,1.352937,55905.0,55904.0,0.010762]
[1725613181706,1.710686,55905.0,55904.0,0.010762]
[1725613181916,1.801986,55905.0,55904.0,0.010762]
[1725613182369,1.957986,55905.0,55904.0,0.010762]
[1725613182699,1.957986,55905.0,55904.0,0.001632]
[1725613182876,1.957986,55905.0,55904.0,0.004632]
[1725613183081,1.957986,55905.0,55904.0,0.006632]
[1725613183407,1.957986,55905.0,55904.0,0.003632]
[1725613183594,0.89455,55894.0,55893.0,0.12472632]
[1725613183795,0.89455,55894.0,55893.0,0.20111619]
[1725613184012,0.89455,55894.0,55893.0,0.21251628]
[1725613185164,0.89455,55894.0,55893.0,0.13612641]
[1725613186033,0.89455,55894.0,55893.0,0.15012641]
[1725613186241,0.53673,55894.0,55893.0,0.22722175]
[1725613186445,0.53673,55894.0,55893.0,0.24022175]
[1725613191293,0.53673,55894.0,55893.0,0.21322175]
[1725613191480,0.53673,55894.0,55893.0,0.22722175]
[1725613191778,0.53673,55894.0,55893.0,0.24122175]
[1725613193026,0.17891,55894.0,55893.0,0.39442175]
[1725613193532,0.178907,55895.0,55893.0,0.39442175]
[1725613193745,0.178906,55895.0,55893.0,0.31732641]
[1725613194276,0.178906,55895.0,55894.0,0.1257]
[1725613194574,0.178906,55895.0,55894.0,0.21322642]
[1725613194967,0.536719,55895.0,55894.0,0.21322642]
[1725613195314,0.178906,55895.0,55894.0,0.21322642]
[1725613195587,0.178906,55895.0,55894.0,0.22622642]
[1725613195955,0.178906,55895.0,55894.0,0.24022642]
[1725613196156,0.536719,55895.0,55894.0,0.24022642]
[1725613197066,0.178906,55895.0,55894.0,0.24022642]
[1725613197476,0.536719,55895.0,55894.0,0.24022642]
[1725613199551,0.511719,55895.0,55894.0,0.24022642]
[1725613201052,0.511719,55895.0,55894.0,0.24185842]
[1725613201461,0.869532,55895.0,55894.0,0.24185842]
[1725613202487,0.91311234,55895.0,55894.0,0.22885842]
[1725613202724,0.91311234,55895.0,55894.0,0.21485842]
[1725613203393,1.27092534,55895.0,55894.0,0.21485842]
[1725613203600,1.28433569,55895.0,55894.0,0.21485842]
[1725613204278,1.28433569,55895.0,55894.0,0.22785842]
[1725613204491,1.24075535,55895.0,55894.0,0.22585842]
[1725613204706,1.24075535,55895.0,55894.0,0.23785842]
[1725613204929,1.227345,55895.0,55894.0,0.23785842]
[1725613205144,1.227345,55895.0,55894.0,0.03602965]
[1725613205368,1.2843371,55895.0,55894.0,0.03602965]
[1725613205640,1.24075516,55895.0,55894.0,0.03602965]
[1725613205864,1.2943779,55895.0,55894.0,0.02502965]
[1725613206119,1.2943779,55895.0,55894.0,0.01302965]
[1725613206120,1.94196816,55895.0,55894.0,0.01302965]
[1725613206350,2.4170715,55895.0,55894.0,0.01302965]
[1725613206588,2.37684894,55895.0,55894.0,0.01302965]
[1725613206841,2.37684894,55895.0,55894.0,0.02102965]
[1725613207109,2.43042,55895.0,55894.0,0.02102965]
[1725613207315,2.43042,55895.0,55894.0,0.03002965]
[1725613207755,2.43042,55895.0,55894.0,0.02102965]
[1725613207962,2.66490282,55895.0,55894.0,0.02102965]
[1725613208182,2.68130875,55895.0,55894.0,0.01402965]
[1725613208390,2.68030875,55895.0,55894.0,0.01302965]
[1725613208795,2.68233387,55895.0,55894.0,0.01402965]
[1725613209022,2.69374809,55895.0,55894.0,0.01302965]
[1725613209504,2.69574809,55895.0,55894.0,0.01502965]
[1725613209714,2.85661632,55895.0,55894.0,0.01502965]
[1725613209927,2.69574809,55895.0,55894.0,0.01502965]
[1725613210142,2.68574809,55895.0,55894.0,0.01502965]
[1725613210364,2.32793509,55895.0,55894.0,0.01502965]
[1725613212375,2.46180683,55895.0,55894.0,0.01502965]
[1725613212588,2.46262283,55895.0,55894.0,0.01502965]
[1725613212779,2.32875109,55895.0,55894.0,0.01502965]
[1725613212922,2.32675109,55895.0,55894.0,0.01502965]
[1725613213141,2.06855489,55895.0,55894.0,0.01502965]
[1725613213350,1.87889298,55895.0,55894.0,0.01502965]
[1725613213557,1.85207689,55895.0,55894.0,0.01502965]
[1725613214160,1.85207689,55895.0,55894.0,0.01402965]
[1725613214161,1.85007689,55895.0,55894.0,0.01402965]
[1725613214532,1.74399644,55895.0,55894.0,0.01402965]
[1725613214920,1.85007689,55895.0,55894.0,0.01402965]
[1725613215159,1.85007689,55895.0,55894.0,0.01502965]
[1725613215160,1.85107689,55895.0,55894.0,0.01502965]
[1725613215417,1.85107689,55895.0,55894.0,0.01402965]
[1725613215631,1.83766683,55895.0,55894.0,0.01402965]
[1725613215900,1.85208602,55895.0,55894.0,0.01302965]
[1725613216747,1.85207991,55895.0,55894.0,0.01302965]
[1725613216935,1.74500557,55895.0,55894.0,0.01302965]
[1725613217189,1.85208039,55895.0,55894.0,0.01302965]
[1725613217604,1.74500557,55895.0,55894.0,0.001632]
[1725613218026,1.85208525,55895.0,55894.0,0.001632]
[1725613218243,1.74500557,55895.0,55894.0,0.001632]
[1725613218461,1.82531867,55895.0,55894.0,0.001632]
[1725613219305,1.46750567,55895.0,55894.0,0.001632]
[1725613219522,1.38719257,55895.0,55894.0,0.280432]
[1725613220900,1.44074064,55895.0,55894.0,0.124132]
[1725613221335,1.38719257,55895.0,55894.0,0.124132]
[1725613221776,1.49943657,55895.0,55894.0,0.124132]
[1725613222005,1.49943683,55895.0,55894.0,0.124132]
[1725613222227,1.44586968,55895.0,55894.0,0.124132]
[1725613222438,1.49943683,55895.0,55894.0,0.124132]
[1725613223760,1.14162383,55895.0,55894.0,0.124132]
[1725613223989,1.08805668,55895.0,55894.0,0.124132]
[1725613224201,1.44586968,55895.0,55894.0,0.124132]
[1725613224437,1.44586968,55895.0,55894.0,0.1372321]
[1725613224656,1.44586968,55895.0,55894.0,0.001632]
[1725613224879,1.52624208,55895.0,55894.0,0.001632]
[1725613226712,1.52624365,55895.0,55894.0,0.001632]
[1725613227567,1.44586968,55895.0,55894.0,0.001632]
[1725613227976,1.44583606,55895.0,55894.0,0.001632]
[1725613229571,1.44582626,55895.0,55894.0,0.001632]
[1725613229778,1.52620023,55895.0,55894.0,0.001632]
[1725613230209,1.44582626,55895.0,55894.0,0.001632]
[1725613231297,1.52620023,55895.0,55894.0,0.001632]
[1725613231515,1.44582626,55895.0,55894.0,0.001632]
[1725613231720,1.55299155,55895.0,55894.0,0.001632]
[1725613231946,1.50941279,55895.0,55894.0,0.001632]
[1725613232187,1.89326065,55895.0,55894.0,0.001632]
[1725613232389,2.22798703,55895.0,55894.0,0.001632]
[1725613232600,2.36986933,55895.0,55894.0,0.001632]
[1725613232840,2.67343955,55895.0,55894.0,0.001632]
[1725613234191,2.90795265,55895.0,55894.0,0.001632]
[1725613234408,2.85682803,55895.0,55894.0,0.001632]
[1725613235137,2.98874351,55895.0,55894.0,0.001632]
[1725613235345,2.98874351,55895.0,55886.0,0.001632]
[1725613235346,1.15316,55887.0,55886.0,0.001632]
[1725613235590,2.06667229,55887.0,55886.0,0.001632]
[1725613235808,2.5413038,55887.0,55886.0,0.001632]
[1725613236020,2.81687644,55887.0,55886.0,0.001632]
[1725613236447,1.847549,55878.0,55871.0,0.1216]
[1725613236649,2.31620776,55878.0,55871.0,0.1216]
[1725613237310,2.21331329,55878.0,55871.0,0.1216]
[1725613237527,2.07941167,55878.0,55871.0,0.1216]
[1725613237734,2.21331329,55878.0,55871.0,0.1216]
[1725613237947,2.07941167,55878.0,55871.0,0.1216]
[1725613238170,2.18653181,55878.0,55871.0,0.1216]
[1725613238425,2.18653181,55878.0,55859.0,0.00163]
[1725613238426,1.76765854,55878.0,55877.0,0.128532]
[1725613238649,1.85497865,55878.0,55877.0,0.129532]
[1725613238892,1.77965854,55878.0,55877.0,0.129532]
[1725613239321,1.76765854,55878.0,55877.0,0.128532]
[1725613239540,1.76965854,55878.0,55877.0,0.128532]
[1725613239750,1.77365854,55878.0,55877.0,0.128532]
[1725613239979,1.8272002,55878.0,55877.0,0.128532]
[1725613240430,1.82719726,55878.0,55877.0,0.128532]
[1725613240874,1.77365854,55878.0,55877.0,0.128532]
[1725613241103,1.85397865,55878.0,55877.0,0.128532]
[1725613241326,2.21953984,55878.0,55877.0,0.001632]
[1725613241611,2.08567877,55878.0,55877.0,0.001632]
[1725613241824,2.11535187,55878.0,55877.0,0.001632]
[1725613242051,2.08579048,55878.0,55877.0,0.001632]
[1725613242268,2.19287935,55878.0,55877.0,0.001632]
[1725613242507,2.11536442,55878.0,55877.0,0.001632]
[1725613242727,2.11534806,55878.0,55877.0,0.001632]
[1725613242973,2.00825919,55878.0,55877.0,0.001632]
[1725613243423,2.11532465,55878.0,55877.0,0.001632]
[1725613243890,1.99484261,55878.0,55877.0,0.001632]
[1725613244112,2.11531483,55878.0,55877.0,0.001632]
[1725613244353,2.20491483,55878.0,55877.0,0.001632]
[1725613245475,2.20491882,55878.0,55877.0,0.001632]
[1725613246132,2.11531882,55878.0,55877.0,0.001632]
[1725613246354,2.00825079,55878.0,55877.0,0.001632]
[1725613247503,2.00825079,55878.0,55877.0,0.124532]
[1725613247504,1.77363378,55878.0,55877.0,0.124532]
[1725613247748,1.82717474,55878.0,55877.0,0.273532]
[1725613247996,2.08856593,55878.0,55877.0,0.124532]
[1725613248459,2.08857186,55878.0,55877.0,0.124532]
[1725613248686,1.49603285,55878.0,55877.0,0.124532]
[1725613249368,1.77363971,55878.0,55877.0,0.124532]
[1725613249602,2.08857796,55878.0,55877.0,0.124532]
[1725613249828,2.00825672,55878.0,55877.0,0.001632]
[1725613251013,2.11536738,55878.0,55877.0,0.001632]
[1725613251243,2.11536694,55878.0,55877.0,0.001632]
[1725613251453,2.00825672,55878.0,55877.0,0.001632]
[1725613252126,1.99484696,55878.0,55877.0,0.001632]
[1725613252338,2.1421623,55878.0,55877.0,0.001632]
[1725613252559,2.00825648,55878.0,55877.0,0.001632]
[1725613252997,2.1153685,55878.0,55877.0,0.001632]
[1725613253641,2.00825648,55878.0,55877.0,0.001632]
[1725613254981,2.1153685,55878.0,55877.0,0.001632]
[1725613255465,2.11535264,55878.0,55877.0,0.001632]
[1725613255920,2.00825648,55878.0,55877.0,0.001632]
[1725613256136,1.99485782,55878.0,55877.0,0.001632]
[1725613256346,2.11536509,55878.0,55877.0,0.001632]
[1725613256558,2.00827075,55878.0,55877.0,0.001632]
[1725613257149,2.11536509,55878.0,55877.0,0.001632]
[1725613257411,1.52282608,55878.0,55877.0,0.001632]
[1725613257634,1.52282608,55878.0,55877.0,0.279232]
[1725613257635,0.95780974,55878.0,55877.0,0.279232]
[1725613258092,0.59988774,55878.0,55877.0,0.36560433]
[1725613258513,0.59388774,55878.0,55877.0,0.36560433]
[1725613258733,0.05700474,55878.0,55877.0,0.54456833]
[1725613258947,0.05700474,55878.0,55877.0,0.54556833]
[1725613259417,0.05700474,55878.0,55877.0,0.36660433]
[1725613259643,0.05700474,55878.0,55877.0,0.54556833]
[1725613259865,0.05800474,55878.0,55877.0,0.54556833]
[1725613260279,0.05800474,55878.0,55877.0,0.54456833]
[1725613260746,0.05900474,55878.0,55877.0,0.91149733]
[1725613260958,0.05800474,55878.0,55877.0,0.90249733]
[1725613261401,0.05900474,55878.0,55877.0,1.27442633]
[1725613261815,0.05800474,55878.0,55877.0,1.27442633]
[1725613262305,0.04559181,55878.0,55877.0,1.80786629]
[1725613262527,0.000816,55886.0,55877.0,1.80786629]
[1725613262528,0.000816,55886.0,55883.0,0.357886]
[1725613262758,0.000816,55886.0,55885.0,0.810415]
[1725613262988,0.000816,55886.0,55885.0,0.88514741]
[1725613263236,0.000816,55886.0,55885.0,1.78953498]
[1725613264334,0.000816,55895.0,55894.0,0.17891]